{"text_format":"3","workbook":"xlsx","n_sheets":1,"sheets":["Kraujo spaudimas ir gliukozė"],"not_rendered":{"defined_names":9},"read":"whole","date_system":"1900"}

{"sheet":"Kraujo spaudimas ir gliukozė","index":0,"n_rows":13,"n_cols":11,"rows_kept":13,"merged":[[0,1,4,3],[0,4,0,9],[1,4,1,6],[1,7,1,9]]}
[null,"Kraujo spaudimo ir gliukozės kiekio stebėjimo programa",null,null,"Tinkinti skalės reikšmes tolesniuose langeliuose E2:J5."]
[{"$nulls":4},"KRAUJO SPAUDIMAS",null,null,"GLIUKOZĖS SKALĖ"]
[{"$nulls":4},120,"SISTOLINIS",140,70,100,150]
[{"$nulls":4},80,"DIASTOLINIS",90,"ŽEMAS","ĮPRASTAS","AUKŠTAS"]
[{"$nulls":4},"TIKSLINIS SPAUDIMAS",null,"SKAMBINTI GYDYTOJUI"]
[null,"Data","Laikas","Įvykis","Sistolinis","Diastolinis","Širdies ritmas","Gliukozė","Lygis","Būsena","Pastabos"]
[null,{"$f":"TODAY()","v":"2022-08-04"},"06:00:00","Pabudimas",129,79,72,55,{"$f":"KraujoSpaudimasIrGliukozė[[#This Row],[Gliukozė]]","v":55},{"$f":"IFERROR(IF(KraujoSpaudimasIrGliukozė[[#This Row],[Lygis]]=0,\"\",IF(KraujoSpaudimasIrGliukozė[[#This Row],[Lygis]]<=GŽemas,\"ŽEMAS\",IF(AND(KraujoSpaudimasIrGliukozė[[#This Row],[Lygis]]>GŽemas,KraujoSpaudimasIrGliukozė[[#This Row],[Lygis]]<GAukštas),\"ĮPRASTAS\",\"AUKŠTAS\"))), \"\")","v":"ŽEMAS"}]
[null,{"$f":"TODAY()","v":"2022-08-04"},"07:00:00","Prieš maistą",120,80,74,70,{"$f":"KraujoSpaudimasIrGliukozė[[#This Row],[Gliukozė]]","v":70},{"$f":"IFERROR(IF(KraujoSpaudimasIrGliukozė[[#This Row],[Lygis]]=0,\"\",IF(KraujoSpaudimasIrGliukozė[[#This Row],[Lygis]]<=GŽemas,\"ŽEMAS\",IF(AND(KraujoSpaudimasIrGliukozė[[#This Row],[Lygis]]>GŽemas,KraujoSpaudimasIrGliukozė[[#This Row],[Lygis]]<GAukštas),\"ĮPRASTAS\",\"AUKŠTAS\"))), \"\")","v":"ŽEMAS"}]
[null,"2022-08-04","09:00:00","Po maisto",133,80,75,75,{"$f":"KraujoSpaudimasIrGliukozė[[#This Row],[Gliukozė]]","v":75},{"$f":"IFERROR(IF(KraujoSpaudimasIrGliukozė[[#This Row],[Lygis]]=0,\"\",IF(KraujoSpaudimasIrGliukozė[[#This Row],[Lygis]]<=GŽemas,\"ŽEMAS\",IF(AND(KraujoSpaudimasIrGliukozė[[#This Row],[Lygis]]>GŽemas,KraujoSpaudimasIrGliukozė[[#This Row],[Lygis]]<GAukštas),\"ĮPRASTAS\",\"AUKŠTAS\"))), \"\")","v":"ĮPRASTAS"}]
[null,"2022-08-04","10:00:00","Tik KS",143,91,75,190,{"$f":"KraujoSpaudimasIrGliukozė[[#This Row],[Gliukozė]]","v":190},{"$f":"IFERROR(IF(KraujoSpaudimasIrGliukozė[[#This Row],[Lygis]]=0,\"\",IF(KraujoSpaudimasIrGliukozė[[#This Row],[Lygis]]<=GŽemas,\"ŽEMAS\",IF(AND(KraujoSpaudimasIrGliukozė[[#This Row],[Lygis]]>GŽemas,KraujoSpaudimasIrGliukozė[[#This Row],[Lygis]]<GAukštas),\"ĮPRASTAS\",\"AUKŠTAS\"))), \"\")","v":"AUKŠTAS"}]
[null,"2022-08-04","12:00:00","Prieš maistą",141,84,70,140,{"$f":"KraujoSpaudimasIrGliukozė[[#This Row],[Gliukozė]]","v":140},{"$f":"IFERROR(IF(KraujoSpaudimasIrGliukozė[[#This Row],[Lygis]]=0,\"\",IF(KraujoSpaudimasIrGliukozė[[#This Row],[Lygis]]<=GŽemas,\"ŽEMAS\",IF(AND(KraujoSpaudimasIrGliukozė[[#This Row],[Lygis]]>GŽemas,KraujoSpaudimasIrGliukozė[[#This Row],[Lygis]]<GAukštas),\"ĮPRASTAS\",\"AUKŠTAS\"))), \"\")","v":"ĮPRASTAS"}]
[null,{"$f":"TODAY()","v":"2022-08-04"},"15:00:00","Po maisto",132,80,68,90,{"$f":"KraujoSpaudimasIrGliukozė[[#This Row],[Gliukozė]]","v":90},{"$f":"IFERROR(IF(KraujoSpaudimasIrGliukozė[[#This Row],[Lygis]]=0,\"\",IF(KraujoSpaudimasIrGliukozė[[#This Row],[Lygis]]<=GŽemas,\"ŽEMAS\",IF(AND(KraujoSpaudimasIrGliukozė[[#This Row],[Lygis]]>GŽemas,KraujoSpaudimasIrGliukozė[[#This Row],[Lygis]]<GAukštas),\"ĮPRASTAS\",\"AUKŠTAS\"))), \"\")","v":"ĮPRASTAS"},"Išgėriau KS vaistus su maistu"]
[null,"Vidurkis",null,null,{"$f":"SUBTOTAL(101,KraujoSpaudimasIrGliukozė[Sistolinis])","v":133},{"$f":"SUBTOTAL(101,KraujoSpaudimasIrGliukozė[Diastolinis])","v":{"v":82.33333333333333,"d":"82"}},{"$f":"SUBTOTAL(101,KraujoSpaudimasIrGliukozė[Širdies ritmas])","v":{"v":72.33333333333333,"d":"72"}},{"$f":"SUBTOTAL(101,KraujoSpaudimasIrGliukozė[Gliukozė])","v":{"v":103.33333333333333,"d":"103"}}]